bitfinex-derivatives/quotes_SOLF0:USTF0_20230701
["timestamp","ask_amount","ask_price","bid_price","bid_amount"]
[1688223826272,75.65,18.422,18.421,0.80311096]
[1688223826570,165.47071194,18.422,18.421,0.14380743]
[1688223829071,165.47071194,18.422,18.404,85.43103003]
[1688223829072,165.47071194,18.422,18.406,74.94]
[1688223829269,227.11337178,18.424,18.406,74.94]
[1688223829270,75.65,18.417,18.406,74.94]
[1688223830180,0.88781114,18.413,18.41,0.84450594]
[1688223835779,75.21,18.411,18.41,0.84450594]
[1688223835987,165.02683612,18.411,18.41,0.84450594]
[1688223845497,75.21,18.411,18.41,0.84450594]
[1688223847190,467.35883956,18.411,18.394,75.23]
[1688223847494,75.65,18.405,18.394,75.23]
[1688223848299,0.81869763,18.401,18.398,0.86010958]
[1688223854097,75.38,18.399,18.398,0.86010958]
[1688223854492,75.38,18.399,18.384,54.6618]
[1688223854698,75.65,18.393,18.384,54.6618]
[1688223855700,0.85529749,18.39,18.387,0.74066692]
[1688223856903,75.33,18.389,18.387,0.74066692]
[1688223860204,75.2,18.388,18.374,59.753]
[1688223860396,75.65,18.382,18.374,59.753]
[1688223860993,75.65,18.382,18.371,74.92]
[1688223861199,0.83418197,18.378,18.375,0.28390931]
[1688223861399,75.38,18.377,18.375,0.28390931]
[1688223871204,102.50512108,18.377,18.375,0.28390931]
[1688223874206,0.83418197,18.378,18.375,0.28390931]
[1688223876010,302.6,18.396,18.375,0.28390931]
[1688223876011,75.65,18.386,18.375,75.93390931]
[1688223876210,75.65,18.386,18.375,75.65]
[1688223877317,0.86345309,18.382,18.379,0.74698361]
[1688223877515,0.86345309,18.382,18.373,75.65]
[1688223877707,75.65,18.384,18.373,75.65]
[1688223878811,76.51324931,18.38,18.377,0.26393081]
[1688223879012,76.51324931,18.38,18.37,74.92]
[1688223879809,76.51324931,18.38,18.373,0.26444901]
[1688223881407,0.86324931,18.38,18.373,75.20444901]
[1688223884822,76.51324931,18.38,18.373,0.26444901]
[1688223885018,0.86324931,18.38,18.373,0.26444901]
[1688223886216,76.51324931,18.38,18.373,0.26444901]
[1688223891214,0.86324931,18.38,18.373,0.26444901]
[1688223894522,75.21,18.388,18.377,74.94]
[1688223894713,200.0,18.394,18.381,75.65]
[1688223895018,75.65,18.391,18.381,75.65]
[1688223895619,75.65,18.391,18.384,0.87643691]
[1688223895620,0.87715282,18.388,18.384,0.87643691]
[1688223911932,76.08715282,18.388,18.384,0.87643691]
[1688223912232,75.38,18.386,18.384,0.0131876]
[1688223919838,0.87715282,18.388,18.384,0.0131876]
[1688223928541,75.65,18.392,18.384,0.0131876]
[1688223928542,131.6201,18.395,18.385,75.65]
[1688223928743,89.56932088,18.394,18.385,75.65]
[1688223929547,0.87897891,18.391,18.388,0.85631684]
[1688223938951,0.87897891,18.391,18.379,75.11]
[1688223939157,75.65,18.389,18.379,75.11]
[1688223939758,75.21,18.386,18.375,75.65]
[1688223940152,0.87917829,18.382,18.379,0.28447076]
[1688223946155,164.89844882,18.381,18.379,0.28447076]
[1688223946357,89.56844882,18.38,18.379,0.28447076]
[1688223951257,75.33,18.381,18.379,0.28447076]
[1688223952055,89.57184478,18.38,18.379,0.28447076]
[1688223952852,75.33,18.381,18.379,0.28447076]
[1688223953057,89.5726372,18.38,18.379,0.28447076]
[1688223953957,75.33,18.381,18.379,0.28447076]
[1688223955069,89.57432596,18.38,18.379,0.28447076]
[1688223962868,392.17432596,18.38,18.379,0.28447076]
[1688223963374,392.17432596,18.38,18.365,74.92]
[1688223963674,75.65,18.373,18.362,129.7831]
[1688223964465,0.83525434,18.369,18.362,129.7831]
[1688223965571,0.83525434,18.369,18.359,75.23]
[1688223965779,0.8341167,18.366,18.361,57.9701]
[1688223966664,0.8341167,18.366,18.362,74.92]
[1688223966867,75.65,18.372,18.362,74.92]
[1688223967763,0.76565426,18.369,18.365,0.75439939]
[1688223976872,0.76565426,18.369,18.365,75.98439939]
[1688223980175,0.76565426,18.369,18.365,0.75439939]
[1688223984778,75.65,18.375,18.365,0.75439939]
[1688223984981,75.65,18.375,18.364,75.65]
[1688223985582,75.65,18.372,18.361,132.9101]
[1688223985775,0.79228423,18.368,18.365,0.80126925]
[1688223991983,75.38,18.376,18.365,76.45126925]
[1688223992189,75.38,18.376,18.365,75.65]
[1688223992989,0.85675634,18.372,18.369,0.86698576]
[1688223993981,302.6,18.396,18.369,0.86698576]
[1688223993982,75.65,18.382,18.37,200.0]
[1688223994184,75.21,18.385,18.375,74.92]
[1688223995092,0.86502577,18.382,18.378,0.86463377]
[1688223995289,0.74225656,18.382,18.378,0.80760089]
[1688223995889,0.74225656,18.382,18.372,74.94]
[1688223996885,0.74225656,18.382,18.375,0.81800008]
[1688224007003,76.39225656,18.382,18.375,0.81800008]
[1688224008306,76.39225656,18.382,18.352,939.59286359]
[1688224008307,75.65,18.376,18.365,75.65]
[1688224009505,0.74659328,18.372,18.369,0.87916552]
[1688224021014,75.65,18.371,18.36,332.1369]
[1688224022111,0.85088186,18.367,18.364,0.74626682]
[1688224026311,75.38,18.375,18.364,76.39626682]
[1688224026614,75.38,18.375,18.364,75.65]
[1688224027419,0.88851092,18.371,18.368,0.76582591]
[1688224028111,0.88851092,18.371,18.36,257.2169]
[1688224028112,76.53851092,18.371,18.361,75.23]
[1688224029321,76.53851092,18.371,18.364,0.80920228]
[1688224030209,0.88851092,18.371,18.364,0.80920228]
[1688224031820,0.88851092,18.371,18.365,75.65]
[1688224034408,75.33,18.379,18.37,200.0]
[1688224034625,27.82679187,18.384,18.375,74.92]
[1688224034813,89.58597229,18.383,18.375,74.92]
[1688224035214,89.58597229,18.383,18.378,75.65]
[1688224035416,0.77068011,18.382,18.379,0.8010133]
[1688224038922,75.21,18.393,18.381,75.65]
[1688224039113,89.62022017,18.392,18.381,75.65]
[1688224039716,89.62022017,18.392,18.384,75.23]
[1688224039924,0.83381218,18.39,18.386,0.76294511]
[1688224041423,89.61818137,18.389,18.386,0.76294511]
[1688224042119,0.83381218,18.39,18.386,0.76294511]
[1688224042321,0.83381218,18.39,18.387,75.23]
[1688224042525,75.38,18.397,18.387,75.23]
[1688224042724,89.57676733,18.396,18.387,75.23]
[1688224043313,75.65,18.394,18.384,74.92]
[1688224043518,0.88897292,18.391,18.387,0.80022633]
[1688224044123,89.5587287,18.39,18.387,0.80022633]
[1688224044421,0.88897292,18.391,18.387,0.80022633]
[1688224049731,75.65,18.389,18.381,54.8335]
[1688224050321,75.65,18.389,18.364,1163.6]
[1688224050322,75.38,18.387,18.376,74.94]
[1688224050625,75.65,18.384,18.373,58.7669]
[1688224050931,0.79264846,18.38,18.377,0.75024816]
[1688224052631,75.65,18.387,18.377,0.75024816]
[1688224052829,89.46575658,18.386,18.376,75.65]
[1688224053429,0.821917,18.383,18.379,0.83458133]
[1688224059834,75.38,18.38,18.37,274.94]
[1688224060632,0.75612975,18.377,18.373,0.83001678]
[1688224061929,0.75612975,18.377,18.373,76.06001678]
[1688224062137,302.6,18.388,18.373,76.06001678]
[1688224062138,75.3,18.388,18.376,74.94]
[1688224062340,54.5894,18.393,18.384,75.65]
[1688224062528,302.6,18.403,18.38,200.0]
[1688224062529,89.4909242,18.392,18.387,75.65]
[1688224062727,75.65,18.401,18.39,274.92]
[1688224062925,89.52474797,18.4,18.39,274.92]
[1688224063135,0.88905196,18.397,18.393,0.83272672]
[1688224063340,75.65,18.404,18.393,76.48272672]
[1688224063529,89.52176396,18.403,18.396,75.65]
[1688224063729,89.52176396,18.402,18.396,75.65]
[1688224064033,75.33,18.407,18.396,75.65]
[1688224064233,53.9612,18.409,18.391,54.1977]
[1688224064234,75.65,18.404,18.393,74.92]
[1688224064437,0.88075436,18.401,18.397,0.85943686]
[1688224066443,83.39,18.398,18.383,83.2]
[1688224066744,83.06,18.395,18.383,83.2]
[1688224066939,89.49315203,18.394,18.383,83.2]
[1688224067443,0.88088025,18.39,18.387,0.8829763]
[1688224068532,84.27088025,18.39,18.38,57.6525]
[1688224069645,84.27088025,18.39,18.383,0.89286828]
[1688224069953,83.39,18.387,18.375,82.63]
[1688224070155,82.87,18.384,18.373,56.9473]
[1688224070645,82.87,18.384,18.372,83.39]
[1688224070849,82.87,18.381,18.37,200.0]
[1688224071051,0.87941166,18.377,18.374,0.83637842]
[1688224077764,0.87941166,18.377,18.364,82.63]
[1688224077765,83.39,18.376,18.364,82.63]
[1688224078657,0.75457047,18.372,18.368,0.65502172]
[1688224086564,0.75457047,18.372,18.368,83.82502172]
[1688224087761,200.0,18.394,18.371,82.79]
[1688224087957,200.0,18.394,18.373,83.2]
[1688224087958,83.39,18.385,18.373,83.2]
[1688224088164,55.5316,18.387,18.376,83.39]
[1688224088467,83.39,18.388,18.376,83.39]
[1688224088663,89.19703324,18.387,18.376,83.39]
[1688224088869,0.74330788,18.383,18.38,0.78028873]
[1688224089765,0.74330788,18.383,18.38,0.1059859]
[1688224089766,83.04,18.382,18.38,0.1059859]
[1688224097668,83.04,18.382,18.365,58.8502]
[1688224097669,333.56,18.38,18.365,58.8502]
[1688224097863,82.87,18.375,18.363,83.2]
[1688224098671,0.82541145,18.371,18.367,0.62945163]
[1688224099779,83.39,18.38,18.368,83.2]
[1688224099975,333.56,18.396,18.371,82.63]
[1688224099976,89.22262683,18.379,18.371,82.63]
[1688224100174,83.04,18.382,18.371,82.63]
[1688224100873,0.86132379,18.378,18.375,0.82965606]
[1688224113492,83.04,18.384,18.375,0.82965606]
[1688224113687,83.04,18.384,18.372,82.79]
[1688224113985,56.4599,18.387,18.376,83.39]
[1688224114295,89.32392342,18.386,18.376,83.39]
[1688224114487,89.32392342,18.385,18.376,83.39]
[1688224114681,0.82088212,18.383,18.379,0.79597957]
[1688224116289,0.82088212,18.383,18.379,83.58597957]
[1688224116488,140.6203,18.391,18.379,283.58597957]
[1688224116692,140.6203,18.391,18.379,282.79]
[1688224117391,0.79246062,18.387,18.383,0.79407052]
[1688224118093,89.32882716,18.386,18.383,0.79407052]
[1688224118293,83.39,18.385,18.373,139.2574]
[1688224119291,0.74510379,18.381,18.377,0.86711783]
[1688224126596,0.74510379,18.381,18.377,76.83711783]
[1688224126895,27.70074077,18.39,18.379,75.84]
[1688224126896,75.66,18.39,18.379,75.84]
[1688224127194,89.38646152,18.389,18.379,75.84]
[1688224127886,0.85329602,18.386,18.382,0.84784546]
[1688224130197,76.82329602,18.386,18.375,75.97]
[1688224130395,75.97,18.386,18.375,75.97]
[1688224130797,75.5,18.383,18.373,55.8674]
[1688224131098,75.5,18.383,18.372,75.97]
[1688224131299,0.79922709,18.379,18.376,0.79286104]
[1688224138508,75.89,18.391,18.379,200.0]
[1688224138705,89.35791048,18.39,18.379,503.88]
[1688224138900,75.89,18.397,18.387,75.6]
[1688224139099,89.35827484,18.396,18.387,75.6]
[1688224139510,0.80232762,18.393,18.39,0.75102992]
[1688224139807,89.35827484,18.392,18.39,0.75102992]
[1688224148612,0.80232762,18.393,18.39,0.75102992]
[1688224148918,89.37833326,18.392,18.39,0.75102992]
[1688224154629,172.63833326,18.392,18.38,56.4808]
[1688224154924,83.26,18.392,18.38,56.4808]
[1688224155622,0.73777378,18.388,18.384,0.77182845]
[1688224173750,0.73777378,18.388,18.376,83.18]
[1688224173751,89.35350648,18.387,18.376,83.18]
[1688224174846,0.81537185,18.383,18.38,0.7492294]
[1688224176454,0.81537185,18.383,18.374,55.4026]
[1688224177450,0.81537185,18.383,18.377,0.76374999]
[1688224181855,83.26,18.382,18.377,0.76374999]
[1688224183942,83.45,18.379,18.377,0.6258055]
[1688224188676,83.07,18.378,18.377,0.6258055]
[1688224190562,172.28973813,18.378,18.377,0.6258055]
[1688224192261,83.07,18.378,18.377,0.6258055]
[1688224199158,109.72348277,18.378,18.377,0.6258055]
[1688224200361,83.07,18.378,18.377,0.6258055]
[1688224201878,83.07,18.379,18.377,0.6258055]
[1688224205372,83.26,18.378,18.377,0.6258055]
[1688224205865,67.88,18.378,18.377,0.6258055]
[1688224218180,0.81537185,18.383,18.377,0.6258055]
[1688224218370,0.81537185,18.383,18.379,68.34]
[1688224218586,68.44,18.388,18.382,68.36]
[1688224218784,89.23869513,18.387,18.382,68.36]
[1688224219680,0.82050334,18.386,18.383,0.76477988]
[1688224220585,0.82050334,18.386,18.385,68.36]
[1688224220980,90.05979204,18.386,18.385,68.36]
[1688224221291,0.82050334,18.386,18.385,68.36]
[1688224222081,90.05843578,18.386,18.383,0.76477988]
[1688224222285,0.82050334,18.386,18.383,0.76477988]
[1688224227387,0.82050334,18.386,18.384,68.34]
[1688224227582,67.88,18.393,18.385,68.36]
[1688224227777,67.88,18.393,18.387,68.36]
[1688224228683,0.83855655,18.392,18.388,0.86753817]
[1688224232398,75.85,18.389,18.379,75.55]
[1688224232700,89.33904418,18.388,18.379,75.55]
[1688224233291,200.0,18.384,18.382,0.75693921]
[1688224233596,164.91360957,18.383,18.37,75.71]
[1688224233782,75.63,18.381,18.37,75.71]
[1688224233987,89.28360957,18.38,18.37,75.71]
[1688224234193,75.63,18.381,18.37,75.71]
[1688224234387,0.75850698,18.377,18.374,0.63988659]
[1688224239703,76.27850698,18.377,18.374,0.63988659]
[1688224241606,0.75850698,18.377,18.374,0.63988659]
[1688224255017,75.89,18.376,18.374,0.63988659]
[1688224261020,89.31064606,18.375,18.374,0.63988659]
[1688224262617,0.75850698,18.377,18.374,0.63988659]
[1688224262820,89.30129687,18.376,18.374,0.63988659]
[1688224269233,0.75850698,18.377,18.374,0.63988659]
[1688224269637,75.89,18.384,18.374,0.63988659]
[1688224269824,89.31967847,18.383,18.374,0.63988659]
[1688224270531,0.74398269,18.38,18.374,0.63988659]
[1688224273931,75.89,18.378,18.368,75.84]
[1688224274148,89.2291435,18.377,18.368,75.84]
[1688224274933,0.86374891,18.374,18.368,75.84]
[1688224275139,0.86374891,18.374,18.371,0.75895129]
[1688224283032,0.86374891,18.374,18.371,0.62893309]
[1688224288946,75.85,18.372,18.371,0.62893309]
[1688224289139,165.05527318,18.372,18.371,0.62893309]
[1688224291839,392.05527318,18.372,18.371,0.62893309]
[1688224300447,419.57713698,18.372,18.371,0.62893309]
[1688224308340,116.72713698,18.372,18.371,0.62893309]
[1688224310142,0.47899225,18.369,18.358,75.84]
[1688224310351,75.52,18.36,18.35,58.5559]
[1688224310556,89.20527318,18.359,18.35,58.5559]
[1688224310747,75.89,18.365,18.354,75.55]
[1688224310951,89.21605922,18.364,18.36,68.52]
[1688224311147,68.2,18.366,18.36,68.52]
[1688224311455,0.79318226,18.364,18.36,68.52]
[1688224313049,0.79318226,18.364,18.362,67.96]
[1688224313251,0.86931162,18.365,18.362,67.96]
[1688224315853,0.86931162,18.365,18.36,75.46]
[1688224316156,0.47899225,18.369,18.36,75.46]
[1688224316157,0.80129982,18.364,18.36,75.46]
[1688224316351,0.80129982,18.364,18.361,58.0911]
[1688224317053,0.80129982,18.364,18.36,75.46]
[1688224318360,0.47899225,18.369,18.36,75.46]
[1688224318558,586.0,18.401,18.351,58.0911]
[1688224318559,76.09,18.377,18.366,76.09]
[1688224318751,89.24906898,18.376,18.368,75.46]
[1688224318951,89.24906898,18.375,18.368,75.46]
[1688224319155,89.24906898,18.374,18.368,75.46]
[1688224319354,89.24906898,18.373,18.368,75.46]
[1688224319655,89.24906898,18.372,18.369,0.79363057]
[1688224329461,76.09,18.381,18.37,76.09]
[1688224329762,76.06,18.388,18.377,76.09]
[1688224330558,0.83242007,18.384,18.381,0.87709697]
[1688224341973,76.87242007,18.384,18.381,0.87709697]
[1688224344382,76.09,18.382,18.371,76.09]
[1688224344581,76.09,18.378,18.368,57.3408]
[1688224345479,0.84748507,18.375,18.371,0.75655072]
[1688224349585,0.84748507,18.375,18.359,200.0]
[1688224349586,76.09,18.373,18.362,76.09]
[1688224349882,84.67419034,18.372,18.357,76.09]
[1688224350184,76.09,18.368,18.36,58.8928]
[1688224350579,0.88428237,18.366,18.36,58.8928]
[1688224354887,76.97428237,18.366,18.36,58.8928]
[1688224355484,76.97428237,18.366,18.355,75.46]
[1688224356084,76.97428237,18.366,18.349,504.36]
[1688224356085,76.09,18.36,18.349,76.09]
[1688224356287,0.75121257,18.356,18.349,76.09]
[1688224362183,0.75121257,18.356,18.344,58.7941]
[1688224362394,0.81875924,18.352,18.346,76.09]
[1688224363997,0.81875924,18.352,18.344,58.7941]
[1688224367798,76.09,18.351,18.34,76.09]
[1688224368007,0.74660231,18.347,18.337,75.81]
[1688224368400,76.09,18.346,18.335,130.9967]
[1688224368594,0.82095918,18.342,18.335,130.9967]
[1688224369800,0.82095918,18.342,18.336,76.09]
[1688224372296,0.82095918,18.342,18.335,54.9067]
[1688224379200,0.82095918,18.342,18.336,76.09]
[1688224379498,76.04,18.346,18.336,76.09]
[1688224380403,0.85892143,18.343,18.339,0.82570725]
[1688224381502,0.85892143,18.343,18.339,76.63570725]
[1688224385204,0.85892143,18.343,18.339,0.82570725]
[1688224390709,0.85892143,18.343,18.339,200.82570725]
[1688224390911,75.82,18.349,18.339,200.82570725]
[1688224391301,75.82,18.349,18.339,0.82570725]
[1688224391924,0.86516943,18.346,18.339,0.82570725]
[1688224392910,76.04,18.345,18.339,0.82570725]
[1688224400117,76.09,18.34,18.339,0.82570725]
[1688224400317,76.09,18.34,18.329,200.67658998]
[1688224400515,76.09,18.34,18.33,10.01244233]
[1688224401220,0.80011088,18.337,18.333,0.78296112]
[1688224401422,0.80011088,18.337,18.336,33.3333]
[1688224402214,76.04,18.343,18.336,33.3333]
[1688224403221,0.79329412,18.341,18.338,0.74403928]
[1688224407723,0.79329412,18.341,18.34,33.3333]
[1688224410126,0.79329412,18.341,18.332,76.09]
[1688224410427,0.79329412,18.341,18.333,10.01242626]
[1688224411316,0.79329412,18.341,18.335,0.81012289]
[1688224421832,76.88329412,18.341,18.335,0.81012289]
[1688224423241,0.79329412,18.341,18.335,0.81012289]
[1688224426349,75.82,18.34,18.335,0.81012289]
[1688224431654,76.09,18.338,18.335,0.81012289]
[1688224433261,76.88329412,18.341,18.335,0.81012289]
[1688224437267,75.9,18.338,18.335,0.81012289]
[1688224439360,76.09,18.336,18.324,25.12059717]
[1688224439559,76.09,18.331,18.319,76.09]
[1688224439753,76.09,18.331,18.32,10.01928968]
[1688224440152,76.09,18.328,18.32,10.01928968]
[1688224440468,76.09,18.325,18.322,0.10739929]
[1688224440766,76.82877272,18.325,18.322,0.10747375]
[1688224441353,0.73877272,18.325,18.322,0.10747375]
[1688224445268,502.71686812,18.374,18.322,0.10747375]
[1688224445269,76.09,18.331,18.322,0.10747375]
[1688224445461,76.09,18.331,18.321,10.01836802]
[1688224446173,0.74982235,18.328,18.324,0.79855146]
[1688224448569,0.74982235,18.328,18.324,76.88855146]
[1688224450063,76.09,18.335,18.324,76.09]
[1688224451057,0.80278674,18.331,18.328,0.85521841]
[1688224455477,0.80278674,18.331,18.324,75.59203844]
[1688224456373,0.80278674,18.331,18.326,0.74025486]
[1688224473580,0.80278674,18.331,18.32,26.87959179]
[1688224473786,200.0,18.333,18.317,103.38704]
[1688224473787,304.36,18.326,18.317,27.29704]
[1688224474477,76.09,18.319,18.308,131.357]
[1688224474683,0.79913861,18.315,18.309,10.02164004]
[1688224475378,76.09,18.313,18.301,75.46]
[1688224475583,76.09,18.313,18.302,10.02842041]
[1688224475584,0.85613293,18.309,18.302,10.02842041]
[1688224475975,0.85613293,18.309,18.307,76.09]
[1688224476179,76.04,18.318,18.307,76.09]
[1688224476376,76.09,18.316,18.304,76.09]
[1688224476582,75.9,18.318,18.307,76.09]
[1688224477190,0.87183701,18.314,18.311,0.85836759]
[1688224477789,76.09,18.323,18.312,76.09]
[1688224478884,0.85514736,18.319,18.316,0.81781144]
[1688224483095,0.85514736,18.319,18.316,76.90781144]
[1688224485896,84.08,18.327,18.316,0.81781144]
[1688224486187,84.08,18.327,18.315,84.08]
[1688224486894,0.8062349,18.323,18.319,0.76934948]
[1688224494298,84.08,18.322,18.312,27.14364375]
[1688224494499,84.08,18.322,18.31,143.0877]
[1688224495498,0.75496542,18.318,18.314,0.75860394]
[1688224506105,84.08,18.315,18.314,0.75860394]
[1688224506414,84.08,18.315,18.302,169.94193718]
[1688224506709,84.08,18.315,18.303,10.02747091]
[1688224507306,0.75604185,18.311,18.307,0.74896713]
[1688224509115,59.4003,18.317,18.307,0.74896713]
[1688224509116,83.29,18.322,18.31,83.5]
[1688224509714,83.29,18.322,18.321,52.1116]
[1688224509913,83.29,18.322,18.321,76.35619427]
[1688224518116,83.29,18.322,18.321,60.86459427]
[1688224518514,83.29,18.322,18.321,55.66889427]
[1688224519517,83.29,18.322,18.321,49.99089427]
[1688224524620,83.29,18.322,18.321,76.04669427]
[1688224524823,83.29,18.322,18.321,102.10249427]
[1688224528115,83.84,18.328,18.321,102.10249427]
[1688224529116,0.86536471,18.326,18.321,102.10249427]
[1688224531423,83.84,18.328,18.325,26.0558]
[1688224531624,84.08,18.332,18.325,26.0558]
[1688224531925,84.08,18.334,18.331,26.0558]
[1688224532521,0.80153631,18.334,18.331,26.83813673]
[1688224536228,84.08,18.34,18.331,26.83813673]
[1688224536430,84.45420971,18.339,18.331,26.83813673]
[1688224537024,0.86582582,18.337,18.331,26.83813673]
[1688224538234,0.86582582,18.337,18.336,26.0558]
[1688224538424,85.32905408,18.337,18.336,52.1116]
[1688224538626,27.54405034,18.347,18.336,52.1116]
[1688224538627,83.29,18.343,18.336,52.1116]
[1688224538923,84.49287463,18.342,18.336,52.1116]
[1688224539131,84.49287463,18.342,18.341,52.1116]
[1688224544126,0.28744777,18.343,18.341,52.1116]
[1688224545528,0.28744777,18.343,18.342,26.0558]
[1688224551831,0.28744777,18.343,18.342,52.1116]
[1688224552332,84.7803224,18.343,18.342,52.1116]
[1688224555038,160.7703224,18.343,18.342,48.75605434]
[1688224558436,160.7703224,18.343,18.342,74.81185434]
[1688224558640,160.7703224,18.343,18.342,100.86765434]
[1688224558840,160.7703224,18.343,18.342,126.92345434]
[1688224562738,84.7803224,18.343,18.342,126.92345434]
[1688224562939,84.49287463,18.343,18.342,126.92345434]
[1688224563445,84.49287463,18.344,18.342,126.92345434]
[1688224563742,84.49287463,18.343,18.342,126.92345434]
[1688224564338,84.49287463,18.344,18.342,126.92345434]
[1688224564533,84.49287463,18.343,18.342,126.92345434]
[1688224564737,84.49287463,18.344,18.342,126.92345434]
[1688224564942,84.49287463,18.343,18.342,126.92345434]
[1688224565240,84.49287463,18.344,18.342,126.92345434]
[1688224565436,75.99,18.345,18.342,126.92345434]
[1688224565638,75.57,18.35,18.344,52.1116]
[1688224565833,75.57,18.35,18.345,0.83987363]
[1688224566135,75.57,18.35,18.349,26.0558]
[1688224566344,75.57,18.35,18.349,13.48585324]
[1688224566541,76.21,18.351,18.349,20.22877986]
[1688224567346,75.75,18.35,18.349,20.22877986]
[1688224571834,76.13,18.351,18.349,20.22877986]
[1688224572249,76.13,18.351,18.35,6.74292662]
[1688224572743,76.13,18.351,18.35,20.22877986]
[1688224573346,75.99,18.355,18.35,20.22877986]
[1688224573643,75.99,18.355,18.351,0.87414445]
[1688224579354,75.99,18.355,18.354,6.74292662]
[1688224580557,75.99,18.355,18.351,0.87414445]
[1688224580851,75.94,18.353,18.351,0.87414445]
[1688224587849,79.24603876,18.352,18.349,20.22877986]
[1688224588154,75.75,18.35,18.349,20.22877986]
[1688224588355,75.75,18.35,18.342,126.92345434]
[1688224588556,76.29,18.347,18.342,126.92345434]
[1688224588951,77.13553347,18.347,18.344,53.00595631]
[1688224589455,275.94,18.345,18.342,119.82959242]
[1688224589757,75.94,18.343,18.336,52.1116]
[1688224590549,75.94,18.343,18.327,135.131]
[1688224590550,0.7435455,18.341,18.327,58.841]
[1688224590749,383.55338851,18.342,18.327,58.841]
[1688224590750,76.21,18.332,18.327,58.841]
[1688224590967,76.21,18.332,18.321,152.33669427]
[1688224591652,0.79415397,18.33,18.327,0.86530384]
[1688224592543,75.94,18.329,18.327,0.86530384]
[1688224592953,75.75,18.328,18.327,0.86530384]
[1688224597553,75.75,18.328,18.321,76.04669427]
[1688224597554,200.0,18.324,18.321,76.04669427]
[1688224597759,76.21,18.322,18.321,76.04669427]
[1688224599260,305.16,18.319,18.302,76.54]
[1688224599456,305.16,18.319,18.303,55.6675]
[1688224600164,305.16,18.319,18.302,76.54]
[1688224600359,0.75625297,18.312,18.309,0.75190784]
[1688224600661,0.80884871,18.312,18.309,0.75190784]
[1688224606068,84.22,18.311,18.309,0.75190784]
[1688224613668,83.58,18.31,18.292,83.64]
[1688224613873,83.53,18.304,18.292,83.64]
[1688224614368,83.53,18.304,18.272,661.40770673]
[1688224614369,83.53,18.294,18.282,84.22]
[1688224614772,0.74096266,18.29,18.286,0.38131214]
[1688224615169,83.58,18.288,18.286,0.38131214]
[1688224616971,84.27096266,18.29,18.286,0.38131214]
[1688224617169,0.74096266,18.29,18.286,0.38131214]
[1688224617971,84.27096266,18.29,18.286,0.38131214]
[1688224618174,84.14,18.287,18.286,0.38131214]
[1688224619265,337.56,18.287,18.286,0.38131214]
[1688224619462,84.34,18.288,18.286,0.38131214]
[1688224620074,421.04,18.288,18.286,0.38131214]
[1688224620375,200.0,18.284,18.271,55.9478]
[1688224620674,83.58,18.28,18.271,55.9478]
[1688224620876,83.58,18.277,18.271,55.9478]
[1688224621075,83.58,18.277,18.265,83.57]
[1688224621466,0.7623239,18.273,18.265,83.57]
[1688224625173,0.7623239,18.273,18.263,139.3738]
[1688224625375,0.7623239,18.273,18.263,84.22]
[1688224626081,0.7623239,18.273,18.264,57.5561]
[1688224628282,0.7623239,18.273,18.265,84.22]
[1688224629976,0.7623239,18.273,18.264,57.5561]
[1688224630476,83.58,18.27,18.257,84.13]
[1688224630673,0.7623239,18.273,18.257,54.9456]
[1688224630674,0.77884589,18.265,18.257,54.9456]
[1688224631595,0.77884589,18.265,18.254,84.22]
[1688224631783,0.80350009,18.261,18.255,64.99538628]
[1688224632079,0.80350009,18.261,18.255,54.9456]
[1688224632580,0.80350009,18.261,18.256,10.04974112]
[1688224632882,83.53,18.267,18.256,10.04974112]
[1688224633088,75.40753021,18.326,18.256,10.04974112]
[1688224633089,84.22,18.274,18.262,84.22]